fUSD/lending_fUSD_20250629
["ID","MTS","AMOUNT","RATE_DAILY","PERIOD"]
[368453181,1751182254364,-490.0,0.00027881,3]
[368453182,1751182254373,-1298.66,0.00027881,3]
[368453183,1751182254383,-490.0,0.00027881,3]
[368453184,1751182254392,-1041.03,0.00027881,3]
[368453185,1751182254401,-490.0,0.00027881,3]
[368453186,1751182254410,-490.0,0.00027881,3]
[368453187,1751182254419,-741.16,0.00027881,3]
[368453188,1751182254429,-490.0,0.00027881,3]
[368453189,1751182254438,-900.77,0.00027881,3]
[368453190,1751182254448,-490.0,0.00027881,3]
[368453191,1751182254457,-961.94,0.00027881,3]
[368453192,1751182254466,-2547.46,0.00027881,3]
[368453193,1751182254475,-490.0,0.00027881,3]
[368453194,1751182254484,-1257.47,0.00027881,3]
[368453195,1751182254494,-388.71213874,0.00027881,3]
[368453196,1751182254503,-490.0,0.00027881,3]
[368453197,1751182254512,-490.0,0.00027881,3]
[368453198,1751182254521,-619.51,0.00027881,3]
[368453199,1751182254531,-490.0,0.00027881,3]
[368453200,1751182254540,-1256.71,0.00027881,3]
[368453201,1751182254550,-256.83211065,0.00027881,3]
[368453202,1751182254559,-764.75,0.00027881,3]
[368453203,1751182254569,-1126.57,0.00027881,3]
[368453204,1751182254578,-490.0,0.00027881,3]
[368453205,1751182254587,-490.0,0.00027881,3]
[368453206,1751182254597,-1937.9,0.00027881,3]
[368453207,1751182254606,-602.77647467,0.00027881,3]
[368453208,1751182254616,-490.0,0.00027881,3]
[368453209,1751182254624,-490.0,0.00027881,3]
[368453210,1751182254634,-490.0,0.00027881,3]
[368453211,1751182254643,-518.43,0.00027881,3]
[368453212,1751182254652,-490.0,0.00027881,3]
[368453213,1751182254661,-490.0,0.00027881,3]
[368453214,1751182254671,-490.0,0.00027881,3]
[368453215,1751182254680,-490.0,0.00027881,3]
[368453216,1751182254689,-490.0,0.00027881,3]
[368453217,1751182254699,-490.0,0.00027881,3]
[368453218,1751182254708,-1121.66,0.00027881,3]
[368453219,1751182254717,-490.0,0.00027881,3]
[368453220,1751182254727,-490.0,0.00027881,3]
[368453221,1751182254736,-490.0,0.00027881,3]
[368453222,1751182254745,-699.3,0.00027881,3]
[368453223,1751182254754,-490.0,0.00027881,3]
[368453224,1751182254763,-505.51571617,0.00027881,3]
[368453225,1751182254772,-490.0,0.00027881,3]
[368453226,1751182254782,-490.0,0.00027881,3]
[368453227,1751182254791,-490.0,0.00027881,3]
[368453228,1751182254800,-1551.2,0.00027881,3]
[368453229,1751182254810,-490.0,0.00027881,3]
[368453230,1751182254819,-490.0,0.00027881,3]
[368453231,1751182254828,-490.0,0.00027881,3]
[368453232,1751182254838,-892.47,0.00027881,3]
[368453233,1751182254848,-490.0,0.00027881,3]
[368453234,1751182254857,-490.0,0.00027881,3]
[368453235,1751182254867,-2782.87,0.00027881,3]
[368453236,1751182254876,-490.0,0.00027881,3]
[368453237,1751182254886,-1321.79,0.00027881,3]
[368453238,1751182254895,-1573.3,0.00027881,3]
[368453239,1751182254905,-490.0,0.00027881,3]
[368453240,1751182254915,-569.0,0.00027881,3]
[368453241,1751182254925,-490.0,0.00027881,3]
[368453242,1751182254935,-490.0,0.00027881,3]
[368453243,1751182254944,-1214.94,0.00027881,3]
[368453244,1751182254953,-554.38,0.00027881,3]
[368453245,1751182254962,-490.0,0.00027881,3]
[368453246,1751182254971,-490.0,0.00027881,3]
[368453247,1751182254981,-926.52,0.00027881,3]
[368453248,1751182254991,-592.48752408,0.00027881,3]
[368453249,1751182255000,-1419.18,0.00027881,3]
[368453250,1751182255010,-490.0,0.00027881,3]
[368453251,1751182255019,-490.0,0.00027881,3]
[368453252,1751182255030,-1795.78,0.00027881,3]
[368453253,1751182255039,-2190.73,0.00027881,3]
[368453254,1751182255049,-490.0,0.00027881,3]
[368453255,1751182255058,-490.0,0.00027881,3]
[368453256,1751182255067,-490.0,0.00027881,3]
[368453257,1751182255077,-1308.62,0.00027881,3]
[368453258,1751182255086,-490.0,0.00027881,3]
[368453259,1751182255096,-5038.91,0.00027881,3]
[368453260,1751182255105,-490.0,0.00027881,3]
[368453261,1751182255116,-490.0,0.00027881,3]
[368453262,1751182255125,-2195.476821,0.00027881,3]
[368453263,1751182255135,-1062.78,0.00027881,3]
[368453264,1751182255144,-1918.05,0.00027881,3]
[368453265,1751182255153,-490.0,0.00027881,3]
[368453266,1751182255163,-490.0,0.00027881,3]
[368453267,1751182255180,-367.73829,0.00027881,3]
[368453268,1751182255189,-490.0,0.00027881,3]
[368453269,1751182255198,-490.0,0.00027881,3]
[368453270,1751182255207,-490.0,0.00027881,3]
[368453271,1751182255217,-2779.41,0.00027881,3]
[368453272,1751182255226,-219.18491454,0.00027881,3]
[368453273,1751182255236,-9441.19,0.00027881,3]
[368453274,1751182255246,-2940.912066,0.00027881,3]
[368453275,1751182255256,-2450.95,0.00027881,3]
[368453276,1751182255266,-490.0,0.00027881,3]
[368453277,1751182255276,-445.92955024,0.00027881,3]
[368453278,1751182255285,-490.0,0.00027881,3]
[368453279,1751182255296,-1090.76,0.00027881,3]
[368453280,1751182255308,-490.0,0.00027881,3]
[368453281,1751182255319,-709.65,0.00027881,3]
[368453282,1751182255330,-2226.72,0.00027881,3]
[368453283,1751182255339,-2138.51,0.00027881,3]
[368453284,1751182255349,-3209.867075,0.00027881,3]
[368453285,1751182255359,-1417.53,0.00027881,3]
[368453286,1751182255368,-1745.41,0.00027881,3]
[368453287,1751182255378,-292.60444249,0.00027881,3]
[368453288,1751182255389,-2036.27,0.00027881,3]
[368453289,1751182255399,-490.0,0.00027881,3]
[368453290,1751182255408,-490.0,0.00027881,3]
[368453291,1751182255417,-1436.09,0.00027881,3]
[368453292,1751182255426,-490.0,0.00027881,3]
[368453293,1751182255436,-490.0,0.00027881,3]
[368453294,1751182255445,-2301.62,0.00027881,3]
[368453295,1751182255454,-1622.86,0.00027881,3]
[368453296,1751182255463,-10744.09,0.00027881,3]
[368453297,1751182255473,-490.0,0.00027881,3]
[368453298,1751182255482,-490.0,0.00027881,3]
[368453299,1751182255491,-490.0,0.00027881,3]
[368453300,1751182255500,-490.0,0.00027881,3]
[368453301,1751182255509,-490.0,0.00027881,3]
[368453302,1751182255519,-490.0,0.00027881,3]
[368453303,1751182255528,-490.0,0.00027881,3]
[368453304,1751182255537,-1177.75,0.00027881,3]
[368453305,1751182255546,-2436.87,0.00027881,3]
[368453306,1751182255555,-1919.68,0.00027881,3]
[368453307,1751182255565,-2799.08,0.00027881,3]
[368453308,1751182255574,-490.0,0.00027881,3]
[368453309,1751182255583,-490.0,0.00027881,3]
[368453310,1751182255594,-490.0,0.00027881,3]
[368453311,1751182255603,-1099.67,0.00027881,3]
[368453312,1751182255612,-565.2665772,0.00027881,3]
[368453313,1751182255622,-2829.49,0.00027881,3]
[368453314,1751182255631,-1311.27,0.00027881,3]
[368453315,1751182255640,-490.0,0.00027881,3]
[368453316,1751182255649,-154.974835,0.00027881,3]
[368453317,1751182255658,-490.0,0.00027881,3]
[368453318,1751182255667,-1298.79,0.00027881,3]
[368453319,1751182255676,-490.0,0.00027881,3]
[368453320,1751182255686,-2812.32,0.00027881,3]
[368453321,1751182255695,-2589.71,0.00027881,3]
[368453322,1751182255705,-490.0,0.00027881,3]
[368453323,1751182255714,-554.13,0.00027881,3]
[368453324,1751182255723,-490.0,0.00027881,3]
[368453325,1751182255733,-490.0,0.00027881,3]
[368453326,1751182255742,-2344.32,0.00027881,3]
[368453327,1751182255751,-153.43889,0.00027881,3]
[368453328,1751182255760,-490.0,0.00027881,3]
[368453329,1751182255770,-1318.19,0.00027881,3]
[368453330,1751182255779,-490.0,0.00027881,3]
[368453331,1751182255789,-2236.75,0.00027881,3]
[368453332,1751182255799,-1960.8,0.00027881,3]
[368453333,1751182255808,-490.0,0.00027881,3]
[368453334,1751182255817,-1862.37,0.00027881,3]
[368453335,1751182255827,-490.0,0.00027881,3]
[368453336,1751182255836,-490.0,0.00027881,3]
[368453337,1751182255845,-4588.45,0.00027881,3]
[368453338,1751182255855,-160.493354,0.00027881,3]
[368453339,1751182255864,-490.0,0.00027881,3]
[368453340,1751182255873,-231.55531068,0.00027881,3]
[368453341,1751182255883,-13062.02,0.00027881,3]
[368453342,1751182255892,-490.0,0.00027881,3]
[368453343,1751182255902,-1135.27,0.00027881,3]
[368453344,1751182255912,-2147.99190865,0.00027882,2]
[368453345,1751182255922,-1012.34,0.00027882,3]
[368453346,1751182255933,-490.0,0.00027882,3]
[368453347,1751182255943,-490.0,0.00027882,3]
[368453348,1751182255952,-361.5349142,0.00027882,3]
[368453349,1751182255961,-490.0,0.00027882,3]
[368453350,1751182255972,-490.0,0.00027882,3]
[368453351,1751182255981,-2260.52,0.00027882,3]
[368453352,1751182255991,-1530.6,0.00027882,3]
[368453353,1751182256000,-2154.93,0.00027882,3]
[368453354,1751182256009,-2500.0,0.00027882,3]
[368453355,1751182256018,-886.28,0.00027882,3]
[368453356,1751182256028,-1930.86,0.00027882,3]
[368453357,1751182256037,-1969.92,0.00027882,3]
[368453358,1751182256046,-1372.39,0.00027882,3]
[368453359,1751182256056,-490.0,0.00027882,3]
[368453360,1751182256066,-490.0,0.00027882,3]
[368453361,1751182256075,-490.0,0.00027882,3]
[368453362,1751182256085,-490.0,0.00027882,3]
[368453363,1751182256095,-490.0,0.00027882,3]
[368453364,1751182256104,-490.0,0.00027882,3]
[368453365,1751182256113,-1425.91,0.00027882,3]
[368453366,1751182256122,-2179.7,0.00027882,3]
[368453367,1751182256131,-1435.02,0.00027882,3]
[368453368,1751182256141,-1284.69,0.00027882,3]
[368453369,1751182256150,-2961.57,0.00027882,3]
[368453370,1751182256160,-490.0,0.00027882,3]
[368453371,1751182256169,-2544.77,0.00027882,3]
[368453372,1751182256180,-490.0,0.00027882,3]
[368453373,1751182256190,-1245.79,0.00027882,3]
[368453374,1751182256199,-490.0,0.00027882,3]
[368453375,1751182256208,-1321.57,0.00027882,3]
[368453376,1751182256219,-2300.75,0.00027882,3]
[368453377,1751182256228,-2011.03,0.00027882,3]
[368453378,1751182256238,-490.0,0.00027882,3]
[368453379,1751182256249,-490.0,0.00027882,3]
[368453380,1751182256260,-490.0,0.00027882,3]
[368453381,1751182256269,-2320.15,0.00027882,3]
[368453382,1751182256279,-1037.74,0.00027882,3]
[368453383,1751182256289,-2583.7,0.00027882,3]
[368453384,1751182256299,-1155.94,0.00027882,3]
[368453385,1751182256309,-2883.83,0.00027882,3]
[368453386,1751182256318,-490.0,0.00027882,3]
[368453387,1751182256327,-1807.92,0.00027882,3]
[368453388,1751182256336,-490.0,0.00027882,3]
[368453389,1751182256346,-1810.73,0.00027882,3]
[368453390,1751182256355,-601.05,0.00027882,3]
[368453391,1751182256365,-1821.33,0.00027882,3]
[368453392,1751182256373,-2243.07,0.00027882,3]
[368453393,1751182256383,-490.0,0.00027882,3]
[368453394,1751182256391,-1737.55,0.00027882,3]
[368453395,1751182256400,-1679.85,0.00027882,3]
[368453396,1751182256410,-2079.58,0.00027882,3]
[368453397,1751182256418,-2091.86,0.00027882,3]
[368453398,1751182256428,-490.0,0.00027882,3]
[368453399,1751182256436,-793.31,0.00027882,3]
[368453400,1751182256446,-1873.65,0.00027882,3]
[368453401,1751182256455,-1518.56,0.00027882,3]
[368453402,1751182256464,-1380.13,0.00027882,3]
[368453403,1751182256475,-1874.18,0.00027882,3]
[368453404,1751182256484,-490.0,0.00027882,3]
[368453405,1751182256493,-1299.19,0.00027882,3]
[368453406,1751182256502,-546.34,0.00027882,3]
[368453407,1751182256511,-2122.4,0.00027882,3]
[368453408,1751182256521,-3200.43,0.00027882,3]
[368453409,1751182256530,-1835.86,0.00027882,3]
[368453410,1751182256539,-4705.46,0.00027882,3]
[368453411,1751182256548,-490.15,0.00027882,3]
[368453412,1751182256558,-2941.76,0.00027882,3]
[368453413,1751182256568,-806.93,0.00027882,3]
[368453414,1751182256577,-283.41,0.00027882,3]
[368453415,1751182256586,-3406.06,0.00027882,3]
[368453416,1751182256596,-4388.37,0.00027882,3]
[368453417,1751182256605,-2455.53,0.00027882,3]
[368453418,1751182256615,-3125.81,0.00027882,3]
[368453419,1751182256624,-1867.83,0.00027882,3]
[368453420,1751182256634,-2248.55,0.00027882,3]
[368453421,1751182256642,-2165.49,0.00027882,3]
[368453422,1751182256652,-490.0,0.00027882,3]
[368453423,1751182256662,-3729.06,0.00027882,3]
[368453424,1751182256671,-2702.4,0.00027882,3]
[368453425,1751182256680,-711.24,0.00027882,3]
[368453426,1751182256689,-6737.6,0.00027882,3]
[368453427,1751182256698,-789.86,0.00027882,3]
[368453428,1751182256707,-2289.46,0.00027882,3]
[368453429,1751182256716,-1131.65,0.00027882,3]
[368453430,1751182256726,-490.0,0.00027882,3]
[368453431,1751182256735,-1251.22,0.00027882,3]
[368453432,1751182256744,-1554.79,0.00027882,3]
[368453433,1751182256753,-2936.86,0.00027882,3]
[368453434,1751182256763,-687.13,0.00027882,3]
[368453435,1751182256772,-2880.67,0.00027882,3]
[368453436,1751182256782,-1874.07,0.00027882,3]
[368453437,1751182256791,-2301.47,0.00027882,3]
[368453438,1751182256800,-490.0,0.00027882,3]
[368453439,1751182256809,-2611.19,0.00027882,3]
[368453440,1751182256818,-1808.02,0.00027882,3]
[368453441,1751182256828,-490.0,0.00027882,3]
[368453442,1751182256837,-490.0,0.00027882,3]
[368453443,1751182256846,-1126.61,0.00027882,3]
[368453444,1751182256855,-7374.62,0.00027882,3]
[368453445,1751182256864,-8804.63,0.00027882,3]
[368453446,1751182256874,-1766.37,0.00027882,3]
[368453447,1751182256883,-11501.68,0.00027882,3]
[368453448,1751182256892,-10168.25,0.00027882,3]
[368453449,1751182256902,-1338.4,0.00027882,3]
[368453450,1751182256911,-490.0,0.00027882,3]
[368453451,1751182256920,-4148.45,0.00027882,3]
[368453452,1751182256929,-1396.59,0.00027882,3]
[368453453,1751182256938,-490.0,0.00027882,3]
[368453454,1751182256948,-2806.96,0.00027882,3]
[368453455,1751182256957,-5920.07,0.00027882,3]
[368453456,1751182256966,-2535.69,0.00027882,3]
[368453457,1751182256975,-1686.82,0.00027882,3]
[368453458,1751182256985,-490.0,0.00027882,3]
[368453459,1751182256994,-2708.06,0.00027882,3]
[368453460,1751182257003,-1662.59,0.00027882,3]
[368453461,1751182257012,-490.0,0.00027882,3]
[368453462,1751182257022,-1933.66,0.00027882,3]
[368453463,1751182257031,-490.0,0.00027882,3]
[368453464,1751182257041,-3197.92,0.00027882,3]
[368453465,1751182257050,-168.0,0.00027886,2]
[368453466,1751182257060,-490.0,0.0002789,3]
[368453467,1751182257070,-490.0,0.0002789,3]
[368453468,1751182257079,-490.0,0.0002789,3]
[368453469,1751182257089,-490.0,0.0002789,3]
[368453470,1751182257099,-490.0,0.0002789,3]
[368453471,1751182257108,-490.0,0.0002789,3]
[368453472,1751182257118,-490.0,0.0002789,3]
[368453473,1751182257127,-490.0,0.0002789,3]
[368453474,1751182257137,-490.0,0.0002789,3]
[368453475,1751182257146,-490.0,0.0002789,3]
[368453476,1751182257156,-964.19,0.0002789,3]
[368453477,1751182257165,-2951.27,0.0002789,3]
[368453478,1751182257177,-2756.58,0.0002789,3]
[368453479,1751182257187,-3180.03,0.0002789,3]
[368453480,1751182257196,-6822.42,0.0002789,3]
[368453481,1751182257205,-1477.92,0.0002789,3]
[368453482,1751182257214,-2515.35,0.0002789,3]
[368453483,1751182257223,-2328.17,0.0002789,3]
[368453484,1751182257233,-590.04,0.0002789,3]
[368453485,1751182257243,-3777.15,0.0002789,3]
[368453486,1751182257252,-500.0,0.0002789,3]
[368453487,1751182257263,-2074.62,0.0002789,3]
[368453488,1751182257272,-4278.36,0.0002789,3]
[368453489,1751182257282,-4385.06,0.0002789,3]
[368453490,1751182257291,-2735.66,0.0002789,3]
[368453491,1751182257300,-2135.46,0.0002789,3]
[368453492,1751182257309,-500.0,0.0002789,3]
[368453493,1751182257318,-4138.99,0.0002789,3]
[368453494,1751182257328,-4694.82,0.0002789,3]
[368453495,1751182257337,-3835.69,0.0002789,3]
[368453496,1751182257346,-3587.26,0.0002789,3]
[368453497,1751182257356,-535.31287008,0.00027891,3]
[368453498,1751182257365,-1142.37,0.00027891,3]
[368453499,1751182257375,-859.15,0.00027891,3]
[368453500,1751182257384,-490.0,0.00027891,3]
[368453501,1751182257394,-686.69,0.00027891,3]
[368453502,1751182257403,-490.0,0.00027891,3]
[368453503,1751182257413,-490.0,0.00027891,3]
[368453504,1751182257531,-1243.41,0.00027891,3]
[368453505,1751182257551,-610.42,0.00027891,3]
[368453506,1751182257561,-490.0,0.00027891,3]
[368453507,1751182257573,-490.0,0.00027891,3]
[368453508,1751182257583,-6449.94,0.00027891,3]
[368453509,1751182257593,-2428.46,0.00027891,3]
[368453510,1751182257605,-2302.8,0.00027891,3]
[368453511,1751182257614,-2237.95,0.00027891,3]
[368453512,1751182257624,-1270.62,0.00027891,3]
[368453513,1751182257635,-490.0,0.00027891,3]
[368453514,1751182257644,-3063.2,0.00027891,3]
[368453515,1751182257655,-3728.98,0.00027891,3]
[368453516,1751182257665,-1956.9,0.00027891,3]
[368453517,1751182257674,-490.0,0.00027891,3]
[368453518,1751182257683,-3352.59,0.00027891,3]
[368453519,1751182257692,-2398.93,0.00027891,3]
[368453520,1751182257701,-760.07,0.00027891,3]
[368453521,1751182257710,-1679.51,0.00027891,3]
[368453522,1751182257719,-1300.72,0.00027891,3]
[368453523,1751182257729,-1231.97,0.00027891,3]
[368453524,1751182257738,-4027.43,0.00027891,3]
[368453525,1751182257748,-1699.97,0.00027891,3]
[368453526,1751182257757,-3154.44,0.00027891,3]
[368453527,1751182257767,-2249.68,0.00027891,3]
[368453528,1751182257777,-2816.41,0.00027891,3]
[368453529,1751182257786,-2391.75,0.00027891,3]
[368453530,1751182257795,-29872.53,0.00027891,3]
[368453531,1751182257807,-2458.27,0.00027892,3]
[368453532,1751182257817,-929.38,0.00027892,3]
[368453533,1751182257827,-3630.15,0.00027892,3]
[368453534,1751182257837,-2325.15,0.00027892,3]
[368453535,1751182257846,-16257.32,0.00027892,3]
[368453536,1751182257855,-7724.83,0.00027892,3]
[368453537,1751182257864,-2149.5,0.00027892,3]
[368453538,1751182257874,-5677.04,0.00027892,3]
[368453539,1751182257883,-2531.52,0.00027892,3]
[368453540,1751182257892,-6800.29,0.00027892,3]
[368453541,1751182257902,-3276.18,0.00027892,3]
[368453542,1751182257911,-3692.76,0.00027892,3]
[368453543,1751182257921,-14547.11,0.00027892,3]
[368453544,1751182257930,-4651.63,0.00027892,3]
[368453545,1751182257939,-5615.45,0.00027892,3]
[368453546,1751182257949,-2445.2,0.00027892,3]
[368453547,1751182257959,-1449.77,0.00027892,3]
[368453548,1751182257968,-6377.64,0.00027892,3]
[368453549,1751182257978,-9534.23,0.00027892,3]
[368453550,1751182257987,-965.3,0.00027892,3]
[368453551,1751182257997,-5998.34,0.00027892,3]
[368453552,1751182258006,-2020.83,0.00027892,3]
[368453553,1751182258016,-3627.03,0.00027892,3]
[368453554,1751182258026,-3212.39,0.00027892,3]
[368453555,1751182258037,-1870.81,0.00027892,3]
[368453556,1751182258046,-3110.6,0.00027892,3]
[368453557,1751182258056,-2825.64,0.00027892,3]
[368453558,1751182258065,-3598.8,0.00027892,3]
[368453559,1751182258075,-2100.0,0.000279,10]
[368453560,1751182258084,-166.72885102,0.000279,2]
[368453561,1751182258094,-166.72885099,0.000279,2]
[368453562,1751182258103,-166.72885099,0.000279,2]
[368453563,1751182258113,-166.72885099,0.000279,2]
[368453564,1751182258123,-166.72885099,0.000279,2]
[368453565,1751182258132,-166.72885099,0.00027913,2]
[368453566,1751182258142,-382.05658395,0.00027927,2]
[368453567,1751182258152,-1700.74,0.00027928,3]
[368453568,1751182258161,-202.92775587,0.00027934,18]
[368453569,1751182258172,-1032.24,0.00027945,3]
[368453570,1751182258183,-986.88,0.00027945,3]
[368453571,1751182258193,-2426.13,0.00027945,3]
[368453572,1751182258203,-2321.5,0.00027945,3]
[368453573,1751182258212,-540.05,0.00027945,3]
[368453574,1751182258222,-524.65,0.00027945,3]
[368453575,1751182258232,-2244.43,0.00027945,3]
[368453576,1751182258242,-2131.08,0.00027945,3]
[368453577,1751182258254,-490.0,0.00027945,3]
[368453578,1751182258265,-2868.24,0.00027945,3]
[368453579,1751182258275,-552.44,0.00027945,3]
[368453580,1751182258286,-490.0,0.00027945,3]
[368453581,1751182258295,-2130.69,0.00027945,3]
[368453582,1751182258304,-656.57,0.00027945,3]
[368453583,1751182258314,-490.0,0.00027945,3]
[368453584,1751182258323,-2139.8,0.00027945,3]
[368453585,1751182258333,-1096.93,0.00027945,3]
[368453586,1751182258342,-490.0,0.00027945,2]
[368453587,1751182258351,-490.0,0.00027945,3]
[368453588,1751182258361,-490.0,0.00027945,3]
[368453589,1751182258370,-490.0,0.00027945,3]
[368453590,1751182258379,-490.0,0.00027945,3]
[368453591,1751182258389,-490.0,0.00027945,3]
[368453592,1751182258398,-777.88,0.00027945,3]
[368453593,1751182258407,-513.38104012,0.00027945,3]
[368453594,1751182258417,-490.0,0.00027945,3]
[368453595,1751182258426,-512.39914071,0.00027946,2]
[368453596,1751182258435,-964.76709245,0.0002797,2]
[368453597,1751182258445,-542.56,0.00027992,2]
[368453598,1751182258454,-500.0,0.00027992,3]
[368453599,1751182258463,-1000.0,0.00028,2]
[368453600,1751182258472,-1000.0,0.00028,2]
[368453601,1751182258482,-1000.0,0.00028,2]
[368453602,1751182258491,-1000.0,0.00028,2]
[368453603,1751182258500,-1000.0,0.00028,2]
[368453604,1751182258510,-1000.0,0.00028,2]
[368453605,1751182258520,-1000.0,0.00028,2]
[368453606,1751182258530,-1000.0,0.00028,2]
[368453607,1751182258540,-1000.0,0.00028,2]
[368453608,1751182258549,-1000.0,0.00028,2]
[368453609,1751182258558,-592.88940154,0.00028001,3]
[368453610,1751182258568,-500.0,0.00028001,3]
[368453611,1751182258578,-507.44418166,0.00028002,3]
[368453612,1751182258587,-501.12,0.00028002,3]
[368453613,1751182258596,-769.92,0.00028002,3]
[368453614,1751182258605,-490.0,0.00028002,3]
[368453615,1751182258615,-490.0,0.00028002,3]
[368453616,1751182258624,-490.0,0.00028002,3]
[368453617,1751182258633,-898.79,0.00028002,3]
[368453618,1751182258643,-490.0,0.00028002,3]
[368453619,1751182258653,-802.69,0.00028002,3]
[368453620,1751182258662,-709.67,0.00028002,3]
[368453621,1751182258671,-490.0,0.00028002,3]
[368453622,1751182258680,-490.0,0.00028002,3]
[368453623,1751182258690,-490.0,0.00028002,3]
[368453624,1751182258699,-490.0,0.00028002,3]
[368453625,1751182258708,-557.87,0.00028002,3]
[368453626,1751182258718,-490.0,0.00028002,3]
[368453627,1751182258727,-490.0,0.00028002,3]
[368453628,1751182258737,-490.0,0.00028002,3]
[368453629,1751182258746,-912.98,0.00028002,3]
[368453630,1751182258756,-490.0,0.00028002,3]
[368453631,1751182258766,-392.91300533,0.00028002,3]
[368453632,1751182258775,-866.34,0.00028002,3]
[368453633,1751182258785,-600.24,0.00028002,3]
[368453634,1751182258794,-493.92598629,0.00028002,3]
[368453635,1751182258804,-490.0,0.00028002,3]
[368453636,1751182258814,-500.23,0.00028002,3]
[368453637,1751182258824,-1027.74,0.00028002,3]
[368453638,1751182258835,-490.0,0.00028002,3]
[368453639,1751182258844,-490.0,0.00028002,3]
[368453640,1751182258855,-490.0,0.00028002,3]
[368453641,1751182258865,-1039.95,0.00028002,3]
[368453642,1751182258874,-490.0,0.00028002,3]
[368453643,1751182258883,-490.0,0.00028002,3]
[368453644,1751182258892,-490.0,0.00028002,3]
[368453645,1751182258901,-490.0,0.00028002,3]
[368453646,1751182258912,-742.48,0.00028002,3]
[368453647,1751182258921,-490.0,0.00028002,3]
[368453648,1751182258931,-586.15,0.00028002,3]
[368453649,1751182258941,-490.0,0.00028002,3]
[368453650,1751182258951,-490.0,0.00028002,3]
[368453651,1751182258961,-490.0,0.00028002,3]
[368453652,1751182258970,-586.74,0.00028002,3]
[368453653,1751182258980,-493.53,0.00028002,3]
[368453654,1751182258990,-490.0,0.00028002,3]
[368453655,1751182258999,-1232.64,0.00028002,3]
[368453656,1751182259008,-490.0,0.00028002,3]
[368453657,1751182259018,-727.1,0.00028002,3]
[368453658,1751182259027,-490.0,0.00028002,3]
[368453659,1751182259037,-646.31,0.00028002,3]
[368453660,1751182259046,-490.0,0.00028002,3]
[368453661,1751182259055,-490.0,0.00028002,3]
[368453662,1751182259065,-490.0,0.00028002,3]
[368453663,1751182259075,-490.2,0.00028002,3]
[368453664,1751182259084,-490.0,0.00028002,3]
[368453665,1751182259094,-490.0,0.00028002,3]
[368453666,1751182259103,-490.0,0.00028002,3]
[368453667,1751182259112,-242.45248207,0.00028002,3]
[368453668,1751182259122,-490.0,0.00028002,3]
[368453669,1751182259131,-503.22,0.00028002,3]
[368453670,1751182259141,-490.0,0.00028002,3]
[368453671,1751182259150,-490.0,0.00028002,3]
[368453672,1751182259160,-490.0,0.00028002,3]
[368453673,1751182259171,-966.34,0.00028002,3]
[368453674,1751182259181,-490.0,0.00028002,3]
[368453675,1751182259191,-1194.77,0.00028002,3]
[368453676,1751182259201,-490.0,0.00028002,3]
[368453677,1751182259211,-575.97,0.00028002,3]
[368453678,1751182259221,-490.0,0.00028002,3]
[368453679,1751182259231,-490.0,0.00028002,3]
[368453680,1751182259241,-490.0,0.00028002,3]